[Event "Chpt France Universitaire 2024"]
[Site "Bastia, France"]
[Date "2024.04.06"]
[Round "2.7"]
[White "Rollot, Florence"]
[Black "Gryshko, Vitalii"]
[Result "1/2-1/2"]
[TimeControl "15min+5s"]
[WhiteElo "2010"]
[BlackElo "2288"]

1. Nf3 {[%clk 00:15:05]} {[%emt 00:00:02]} c5 {[%clk 00:15:05]} {[%emt
00:00:02]} 2. c4 {[%clk 00:15:05]} {[%emt 00:00:02]} Nc6 {[%clk 00:15:05]}
{[%emt 00:00:04]} 3. g3 {[%clk 00:15:05]} {[%emt 00:00:02]} g6 {[%clk
00:15:05]} 4. Bg2 {[%clk 00:15:05]} Bg7 {[%clk 00:15:05]} {[%emt 00:00:01]} 5.
O-O {[%clk 00:15:05]} {[%emt 00:00:04]} e6 {[%clk 00:15:05]} {[%emt 00:00:03]}
6. Nc3 {[%clk 00:15:04]} {[%emt 00:00:06]} Nge7 {[%clk 00:15:05]} {[%emt
00:00:02]} 7. d3 {[%clk 00:14:30]} {[%emt 00:00:39]} O-O {[%clk 00:15:05]}
{[%emt 00:00:03]} 8. Rb1 {[%clk 00:14:30]} {[%emt 00:00:05]} b6 {[%clk
00:14:48]} {[%emt 00:00:23]} 9. a3 {[%clk 00:14:26]} {[%emt 00:00:09]} Bb7
{[%clk 00:14:48]} {[%emt 00:00:02]} 10. Bf4 {[%clk 00:14:24]} {[%emt 00:00:07]}
d6 {[%clk 00:14:40]} {[%emt 00:00:13]} 11. Qc1 {[%clk 00:14:10]} {[%emt
00:00:19]} Nf5 {[%clk 00:14:29]} {[%emt 00:00:16]} 12. b4 {[%clk 00:13:41]}
{[%emt 00:00:35]} Qe7 {[%clk 00:13:52]} {[%emt 00:00:41]} 13. Nb5 {[%clk
00:13:25]} {[%emt 00:00:21]} Rfd8 {[%clk 00:13:06]} {[%emt 00:00:49]} 14. Bg5
{[%clk 00:12:26]} {[%emt 00:01:05]} f6 {[%clk 00:12:49]} {[%emt 00:00:22]} 15.
Bd2 {[%clk 00:11:59]} {[%emt 00:00:32]} cxb4 {[%clk 00:11:41]} {[%emt
00:01:14]} 16. axb4 {[%clk 00:11:48]} {[%emt 00:00:16]} Rac8 {[%clk 00:11:41]}
{[%emt 00:00:02]} 17. e4 {[%clk 00:10:07]} {[%emt 00:01:45]} a6 {[%clk
00:11:29]} {[%emt 00:00:18]} 18. exf5 {[%clk 00:09:57]} {[%emt 00:00:14]} axb5
{[%clk 00:11:29]} {[%emt 00:00:02]} 19. fxe6 {[%clk 00:09:45]} {[%emt
00:00:18]} bxc4 {[%clk 00:11:07]} {[%emt 00:00:27]} 20. dxc4 {[%clk 00:09:45]}
{[%emt 00:00:02]} Ne5 {[%clk 00:11:07]} {[%emt 00:00:02]} 21. Nxe5 {[%clk
00:08:20]} {[%emt 00:01:30]} Bxg2 {[%clk 00:10:48]} {[%emt 00:00:23]} 22. Nxg6
{[%clk 00:06:52]} {[%emt 00:01:33]} hxg6 {[%clk 00:10:47]} {[%emt 00:00:05]} 23.
Kxg2 {[%clk 00:06:52]} {[%emt 00:00:04]} Qxe6 {[%clk 00:10:47]} {[%emt
00:00:01]} 24. Qc2 {[%clk 00:06:40]} {[%emt 00:00:17]} Rxc4 {[%clk 00:10:43]}
{[%emt 00:00:10]} 25. Qd3 {[%clk 00:03:08]} {[%emt 00:03:37]} f5 {[%clk
00:10:19]} {[%emt 00:00:30]} 26. Rfe1 {[%clk 00:03:00]} {[%emt 00:00:13]} Qf7
{[%clk 00:10:19]} {[%emt 00:00:01]} 27. Bg5 {[%clk 00:02:56]} {[%emt 00:00:08]}
Rd4 {[%clk 00:08:50]} {[%emt 00:01:35]} 28. Qb5 {[%clk 00:02:34]} {[%emt
00:00:27]} Rb8 {[%clk 00:07:05]} {[%emt 00:01:49]} 29. Kg1 {[%clk 00:01:22]}
{[%emt 00:01:17]} Be5 {[%clk 00:06:42]} {[%emt 00:00:28]} 30. Rbc1 {[%clk
00:01:19]} {[%emt 00:00:08]} f4 {[%clk 00:06:27]} {[%emt 00:00:21]} 31. Rxe5
{[%clk 00:01:11]} {[%emt 00:00:13]} fxg3 {[%clk 00:05:54]} {[%emt 00:00:38]} 32.
hxg3 {[%clk 00:01:04]} {[%emt 00:00:12]} Rf8 {[%clk 00:04:57]} {[%emt
00:01:01]} 33. Re2 {[%clk 00:00:55]} {[%emt 00:00:07]} Rd5 {[%clk 00:04:57]}
{[%emt 00:00:09]} 34. Qxb6 {[%clk 00:00:52]} {[%emt 00:00:07]} Rxg5 {[%clk
00:04:52]} {[%emt 00:00:10]} 35. Qxd6 {[%clk 00:00:49]} {[%emt 00:00:09]} Qf3
{[%clk 00:04:46]} {[%emt 00:00:11]} 36. Qe6+ {[%clk 00:00:49]} {[%emt
00:00:05]} Kh8 {[%clk 00:04:14]} {[%emt 00:00:37]} 37. Rc5 {[%clk 00:00:49]}
{[%emt 00:00:03]} Rxc5 {[%clk 00:00:47]} {[%emt 00:03:32]} 38. bxc5 {[%clk
00:00:49]} {[%emt 00:00:02]} Rd8 {[%clk 00:00:47]} 39. Qe5+ {[%clk 00:00:44]}
{[%emt 00:00:10]} Kg8 {[%clk 00:00:47]} {[%emt 00:00:03]} 40. Re1 {[%clk
00:00:27]} {[%emt 00:00:22]} Rf8 {[%clk 00:00:41]} {[%emt 00:00:11]} 41. Re2
{[%clk 00:00:27]} {[%emt 00:00:03]} Rd8 {[%clk 00:00:41]} {[%emt 00:00:01]} 42.
Re1 {[%clk 00:00:24]} {[%emt 00:00:08]} Rf8 {[%clk 00:00:41]} {[%emt 00:00:01]}
43. Re2 {[%clk 00:00:16]} {[%emt 00:00:14]} 1/2-1/2

[Event "Chpt France Universitaire 2024"]
[Site "Bastia, France"]
[Date "2024.04.06"]
[Round "2.8"]
[White "Eveno, Nathan"]
[Black "Courjal, Pauline"]
[Result "1-0"]
[TimeControl "15min+5s"]
[WhiteElo "2192"]
[BlackElo "1982"]

1. e4 {[%clk 00:15:05]} c5 {[%clk 00:15:05]} {[%emt 00:00:01]} 2. Nf3 {[%clk
00:15:05]} {[%emt 00:00:02]} e6 {[%clk 00:15:05]} {[%emt 00:00:02]} 3. b3
{[%clk 00:14:31]} {[%emt 00:00:39]} a6 {[%clk 00:15:05]} {[%emt 00:00:05]} 4.
Bb2 {[%clk 00:14:31]} {[%emt 00:00:01]} Nc6 {[%clk 00:15:05]} {[%emt 00:00:05]}
5. c4 {[%clk 00:14:31]} {[%emt 00:00:02]} Qc7 {[%clk 00:14:57]} {[%emt
00:00:12]} 6. g3 {[%clk 00:14:31]} {[%emt 00:00:02]} Nf6 {[%clk 00:12:51]}
{[%emt 00:02:11]} 7. d3 {[%clk 00:14:31]} {[%emt 00:00:02]} Be7 {[%clk
00:12:39]} {[%emt 00:00:16]} 8. Bg2 {[%clk 00:14:25]} {[%emt 00:00:12]} d6
{[%clk 00:12:39]} {[%emt 00:00:03]} 9. O-O {[%clk 00:14:22]} {[%emt 00:00:08]}
O-O {[%clk 00:12:36]} {[%emt 00:00:08]} 10. Nc3 {[%clk 00:13:57]} {[%emt
00:00:31]} e5 {[%clk 00:11:38]} {[%emt 00:01:03]} 11. Qd2 {[%clk 00:13:36]}
{[%emt 00:00:26]} Bg4 {[%clk 00:11:16]} {[%emt 00:00:27]} 12. h3 {[%clk
00:13:15]} {[%emt 00:00:27]} Bxf3 {[%clk 00:11:16]} {[%emt 00:00:03]} 13. Bxf3
{[%clk 00:13:15]} {[%emt 00:00:02]} Nd4 {[%clk 00:11:13]} {[%emt 00:00:08]} 14.
Bg2 {[%clk 00:13:15]} {[%emt 00:00:02]} b5 {[%clk 00:10:20]} {[%emt 00:00:58]}
15. f4 {[%clk 00:12:45]} {[%emt 00:00:35]} b4 {[%clk 00:09:17]} {[%emt
00:01:07]} 16. Nd1 {[%clk 00:10:50]} {[%emt 00:01:59]} Nh5 {[%clk 00:08:57]}
{[%emt 00:00:25]} 17. Kh2 {[%clk 00:09:42]} {[%emt 00:01:14]} exf4 {[%clk
00:07:43]} {[%emt 00:01:19]} 18. gxf4 {[%clk 00:09:38]} {[%emt 00:00:09]} Bh4
{[%clk 00:07:37]} {[%emt 00:00:11]} 19. Ne3 {[%clk 00:03:29]} {[%emt 00:06:15]}
Bg3+ {[%clk 00:06:48]} {[%emt 00:00:54]} 20. Kg1 {[%clk 00:03:29]} {[%emt
00:00:01]} Bxf4 {[%clk 00:05:40]} {[%emt 00:01:12]} 21. Bxd4 {[%clk 00:02:40]}
{[%emt 00:00:55]} cxd4 {[%clk 00:05:38]} {[%emt 00:00:07]} 22. Nd5 {[%clk
00:02:40]} {[%emt 00:00:01]} Bxd2 {[%clk 00:05:28]} {[%emt 00:00:15]} 23. Nxc7
{[%clk 00:02:40]} {[%emt 00:00:02]} Be3+ {[%clk 00:04:41]} {[%emt 00:00:51]} 24.
Kh2 {[%clk 00:02:40]} {[%emt 00:00:03]} Bf4+ {[%clk 00:03:58]} {[%emt
00:00:48]} 25. Kg1 {[%clk 00:02:36]} {[%emt 00:00:08]} Ra7 {[%clk 00:03:56]}
{[%emt 00:00:07]} 26. Nd5 {[%clk 00:02:36]} {[%emt 00:00:03]} Bd2 {[%clk
00:03:36]} {[%emt 00:00:24]} 27. a3 {[%clk 00:01:55]} {[%emt 00:00:48]} Rb8
{[%clk 00:03:00]} {[%emt 00:00:41]} 28. axb4 {[%clk 00:01:33]} {[%emt
00:00:26]} Bxb4 {[%clk 00:03:00]} {[%emt 00:00:04]} 29. Bf3 {[%clk 00:01:24]}
{[%emt 00:00:14]} Nf6 {[%clk 00:02:44]} {[%emt 00:00:22]} 30. Nxf6+ {[%clk
00:01:11]} {[%emt 00:00:17]} gxf6 {[%clk 00:02:44]} {[%emt 00:00:01]} 31. Bh5
{[%clk 00:00:41]} {[%emt 00:00:35]} Bc3 {[%clk 00:02:41]} {[%emt 00:00:08]} 32.
Rab1 {[%clk 00:00:41]} Kg7 {[%clk 00:02:28]} {[%emt 00:00:17]} 33. Rf5 {[%clk
00:00:41]} {[%emt 00:00:04]} Rab7 {[%clk 00:02:10]} {[%emt 00:00:23]} 34. Kh1
{[%clk 00:00:26]} {[%emt 00:00:20]} Rxb3 {[%clk 00:02:00]} {[%emt 00:00:15]} 35.
Rg1+ {[%clk 00:00:26]} Kf8 {[%clk 00:02:00]} {[%emt 00:00:01]} 36. Rxf6 {[%clk
00:00:26]} {[%emt 00:00:05]} R8b7 {[%clk 00:01:39]} {[%emt 00:00:26]} 37. Rxd6
{[%clk 00:00:26]} {[%emt 00:00:02]} a5 {[%clk 00:01:23]} {[%emt 00:00:20]} 38.
Ra6 {[%clk 00:00:17]} {[%emt 00:00:15]} Rb1 {[%clk 00:01:19]} {[%emt 00:00:09]}
39. Rxb1 {[%clk 00:00:15]} {[%emt 00:00:06]} Rxb1+ {[%clk 00:01:19]} 40. Kg2
{[%clk 00:00:15]} Ra1 {[%clk 00:01:12]} {[%emt 00:00:11]} 41. Ra7 {[%clk
00:00:15]} {[%emt 00:00:02]} a4 {[%clk 00:01:12]} {[%emt 00:00:03]} 42. Rxf7+
{[%clk 00:00:15]} {[%emt 00:00:02]} Kg8 {[%clk 00:01:12]} 43. Ra7 {[%clk
00:00:09]} {[%emt 00:00:13]} a3 {[%clk 00:01:12]} {[%emt 00:00:06]} 44. c5
{[%clk 00:00:09]} {[%emt 00:00:01]} Bd2 {[%clk 00:00:40]} {[%emt 00:00:37]} 45.
c6 {[%clk 00:00:09]} {[%emt 00:00:02]} Bf4 {[%clk 00:00:40]} {[%emt 00:00:05]}
46. Bf7+ {[%clk 00:00:09]} {[%emt 00:00:04]} Kf8 {[%clk 00:00:40]} {[%emt
00:00:02]} 47. Bc4 {[%clk 00:00:09]} {[%emt 00:00:02]} a2 {[%clk 00:00:38]}
{[%emt 00:00:06]} 48. Bxa2 {[%clk 00:00:08]} {[%emt 00:00:07]} Rc1 {[%clk
00:00:27]} {[%emt 00:00:16]} 49. Rf7+ {[%clk 00:00:08]} {[%emt 00:00:02]} Ke8
{[%clk 00:00:27]} {[%emt 00:00:01]} 50. Rxf4 {[%clk 00:00:08]} {[%emt
00:00:02]} 1-0

[Event "Chpt France Universitaire 2024"]
[Site "Bastia, France"]
[Date "2024.04.06"]
[Round "2.9"]
[White "Sumarriva Paulin, Laura"]
[Black "Maache, Jawad"]
[Result "0-1"]
[TimeControl "15min+5s"]
[WhiteElo "2046"]
[BlackElo "2154"]

1. e4 {[%clk 00:15:05]} {[%emt 00:00:04]} d5 {[%clk 00:15:04]} {[%emt
00:00:06]} 2. exd5 {[%clk 00:15:05]} {[%emt 00:00:04]} Qxd5 {[%clk 00:15:04]}
{[%emt 00:00:02]} 3. Nc3 {[%clk 00:15:05]} {[%emt 00:00:05]} Qa5 {[%clk
00:15:04]} {[%emt 00:00:02]} 4. g3 {[%clk 00:14:58]} {[%emt 00:00:13]} Nf6
{[%clk 00:15:02]} {[%emt 00:00:06]} 5. Bg2 {[%clk 00:14:58]} {[%emt 00:00:05]}
Nc6 {[%clk 00:14:46]} {[%emt 00:00:22]} 6. Nge2 {[%clk 00:14:29]} {[%emt
00:00:35]} h5 {[%clk 00:14:45]} {[%emt 00:00:05]} 7. h4 {[%clk 00:12:33]}
{[%emt 00:02:01]} Bg4 {[%clk 00:14:41]} {[%emt 00:00:09]} 8. d3 {[%clk
00:09:26]} {[%emt 00:03:12]} O-O-O {[%clk 00:10:56]} {[%emt 00:03:50]} 9. Be3
{[%clk 00:08:43]} {[%emt 00:00:47]} Ne5 {[%clk 00:10:42]} {[%emt 00:00:19]} 10.
b4 {[%clk 00:06:42]} {[%emt 00:02:06]} Qa3 {[%clk 00:10:28]} {[%emt 00:00:19]}
11. Rb1 {[%clk 00:05:10]} {[%emt 00:01:38]} Nf3+ {[%clk 00:07:43]} {[%emt
00:02:49]} 12. Bxf3 {[%clk 00:04:35]} {[%emt 00:00:40]} Bxf3 {[%clk 00:07:43]}
{[%emt 00:00:02]} 13. O-O {[%clk 00:03:07]} {[%emt 00:01:33]} Qa6 {[%clk
00:06:52]} {[%emt 00:00:56]} 14. Qd2 {[%clk 00:00:55]} {[%emt 00:02:18]} e5
{[%clk 00:06:51]} {[%emt 00:00:06]} 15. Bg5 {[%clk 00:00:27]} {[%emt 00:00:32]}
Qe6 {[%clk 00:05:53]} {[%emt 00:01:03]} 16. Kh2 {[%clk 00:00:21]} {[%emt
00:00:12]} Ng4+ {[%clk 00:05:36]} {[%emt 00:00:22]} 17. Kg1 {[%clk 00:00:21]}
{[%emt 00:00:03]} f6 {[%clk 00:05:18]} {[%emt 00:00:23]} 18. Be3 {[%clk
00:00:16]} {[%emt 00:00:10]} g5 {[%clk 00:04:56]} {[%emt 00:00:26]} 19. hxg5
{[%clk 00:00:10]} {[%emt 00:00:11]} h4 {[%clk 00:04:56]} {[%emt 00:00:04]} 20.
gxf6 {[%clk 00:00:08]} {[%emt 00:00:08]} h3 {[%clk 00:04:46]} {[%emt 00:00:14]}
0-1

[Event "Chpt France Universitaire 2024"]
[Site "Bastia, France"]
[Date "2024.04.06"]
[Round "2.10"]
[White "Cahen, Alexis"]
[Black "Leriche, Ines"]
[Result "1-0"]
[TimeControl "15min+5s"]
[WhiteElo "2060"]
[BlackElo "1964"]

1. d4 {[%clk 00:15:05]} {[%emt 00:00:03]} e6 {[%clk 00:15:05]} {[%emt
00:00:04]} 2. Nf3 {[%clk 00:15:05]} {[%emt 00:00:02]} d5 {[%clk 00:15:05]}
{[%emt 00:00:02]} 3. Bf4 {[%clk 00:15:05]} {[%emt 00:00:04]} Nf6 {[%clk
00:14:20]} {[%emt 00:00:51]} 4. e3 {[%clk 00:14:46]} {[%emt 00:00:24]} Bd6
{[%clk 00:11:52]} {[%emt 00:02:32]} 5. Bg3 {[%clk 00:14:30]} {[%emt 00:00:22]}
O-O {[%clk 00:11:47]} {[%emt 00:00:10]} 6. Nbd2 {[%clk 00:14:24]} {[%emt
00:00:11]} c5 {[%clk 00:11:35]} {[%emt 00:00:18]} 7. c3 {[%clk 00:14:19]}
{[%emt 00:00:10]} Nc6 {[%clk 00:11:29]} {[%emt 00:00:11]} 8. Bd3 {[%clk
00:14:13]} {[%emt 00:00:11]} b6 {[%clk 00:10:58]} {[%emt 00:00:36]} 9. Qe2
{[%clk 00:12:52]} {[%emt 00:01:26]} Bb7 {[%clk 00:10:51]} {[%emt 00:00:12]} 10.
e4 {[%clk 00:11:28]} {[%emt 00:01:28]} dxe4 {[%clk 00:06:24]} {[%emt 00:04:33]}
11. Nxe4 {[%clk 00:11:25]} {[%emt 00:00:08]} Be7 {[%clk 00:04:39]} {[%emt
00:01:50]} 12. dxc5 {[%clk 00:11:05]} {[%emt 00:00:25]} bxc5 {[%clk 00:04:31]}
{[%emt 00:00:13]} 13. O-O {[%clk 00:10:20]} {[%emt 00:00:50]} Qb6 {[%clk
00:01:14]} {[%emt 00:03:22]} 14. h3 {[%clk 00:09:12]} {[%emt 00:01:12]} Rfd8
{[%clk 00:01:10]} {[%emt 00:00:10]} 15. Rad1 {[%clk 00:07:54]} {[%emt
00:01:23]} Rac8 {[%clk 00:01:07]} {[%emt 00:00:09]} 16. Rfe1 {[%clk 00:07:38]}
{[%emt 00:00:20]} Na5 {[%clk 00:00:57]} {[%emt 00:00:14]} 17. Nfg5 {[%clk
00:06:24]} {[%emt 00:01:20]} h6 {[%clk 00:00:49]} {[%emt 00:00:13]} 18. Nxf6+
{[%clk 00:06:22]} {[%emt 00:00:07]} Bxf6 {[%clk 00:00:49]} {[%emt 00:00:04]} 19.
Ne4 {[%clk 00:05:39]} {[%emt 00:00:48]} Be7 {[%clk 00:00:49]} {[%emt 00:00:04]}
20. Bf4 {[%clk 00:04:41]} {[%emt 00:01:03]} c4 {[%clk 00:00:44]} {[%emt
00:00:11]} 21. Bb1 {[%clk 00:04:28]} {[%emt 00:00:18]} Bf8 {[%clk 00:00:17]}
{[%emt 00:00:32]} 22. Be3 {[%clk 00:01:54]} {[%emt 00:02:38]} Qc7 {[%clk
00:00:17]} {[%emt 00:00:04]} 23. Bxa7 {[%clk 00:01:38]} {[%emt 00:00:21]} Nc6
{[%clk 00:00:14]} {[%emt 00:00:08]} 24. Bc5 {[%clk 00:01:09]} {[%emt 00:00:34]}
Bxc5 {[%clk 00:00:07]} {[%emt 00:00:12]} 25. Nxc5 {[%clk 00:01:09]} Ba8 {[%clk
00:00:07]} {[%emt 00:00:05]} 26. Be4 {[%clk 00:00:22]} {[%emt 00:00:52]} Ne7
{[%clk 00:00:07]} {[%emt 00:00:04]} 27. Bxa8 {[%clk 00:00:22]} {[%emt
00:00:03]} Rxa8 {[%clk 00:00:07]} {[%emt 00:00:01]} 28. Rxd8+ {[%clk 00:00:20]}
{[%emt 00:00:07]} Rxd8 {[%clk 00:00:07]} {[%emt 00:00:03]} 29. Qxc4 {[%clk
00:00:15]} {[%emt 00:00:11]} Rc8 {[%clk 00:00:07]} {[%emt 00:00:02]} 30. b4
{[%clk 00:00:15]} {[%emt 00:00:04]} Nd5 {[%clk 00:00:07]} {[%emt 00:00:04]} 31.
Qd4 {[%clk 00:00:12]} {[%emt 00:00:07]} Ra8 {[%emt 00:00:05]} 32. a4 Nb6 {[%clk
00:00:07]} {[%emt 00:00:06]} 33. a5 {[%clk 00:00:12]} {[%emt 00:00:05]} Nd5
{[%clk 00:00:07]} {[%emt 00:00:02]} 34. a6 {[%clk 00:00:08]} {[%emt 00:00:10]}
Qc6 {[%clk 00:00:07]} {[%emt 00:00:04]} 35. Rb1 {[%clk 00:00:08]} {[%emt
00:00:03]} Rb8 {[%clk 00:00:06]} {[%emt 00:00:06]} 36. Qc4 {[%clk 00:00:07]}
{[%emt 00:00:07]} Qc7 {[%clk 00:00:06]} {[%emt 00:00:04]} 37. b5 {[%clk
00:00:07]} {[%emt 00:00:02]} Nb6 {[%clk 00:00:06]} {[%emt 00:00:03]} 38. Qd4
{[%clk 00:00:07]} {[%emt 00:00:04]} Rc8 {[%clk 00:00:06]} {[%emt 00:00:04]} 39.
Ne4 {[%clk 00:00:07]} {[%emt 00:00:02]} f6 {[%clk 00:00:06]} {[%emt 00:00:04]}
40. Rb4 {[%clk 00:00:07]} {[%emt 00:00:04]} e5 {[%clk 00:00:06]} {[%emt
00:00:02]} 41. Qd6 {[%clk 00:00:07]} {[%emt 00:00:02]} Qa7 {[%clk 00:00:06]}
{[%emt 00:00:04]} 42. Qe6+ {[%clk 00:00:07]} {[%emt 00:00:01]} Kh7 {[%clk
00:00:06]} {[%emt 00:00:01]} 43. Nd6 {[%clk 00:00:07]} {[%emt 00:00:03]} Rxc3
{[%clk 00:00:06]} {[%emt 00:00:02]} 44. Rg4 {[%clk 00:00:07]} {[%emt 00:00:03]}
Rc1+ {[%clk 00:00:06]} {[%emt 00:00:02]} 45. Kh2 {[%clk 00:00:07]} Rb1 {[%clk
00:00:06]} {[%emt 00:00:06]} 46. Nf5 {[%clk 00:00:07]} {[%emt 00:00:01]} g5
{[%clk 00:00:06]} {[%emt 00:00:03]} 47. Qxf6 {[%clk 00:00:07]} {[%emt
00:00:03]} Rxb5 {[%clk 00:00:06]} {[%emt 00:00:03]} 48. Qxh6+ {[%clk 00:00:07]}
{[%emt 00:00:01]} Kg8 {[%clk 00:00:06]} {[%emt 00:00:01]} 49. Rxg5+ {[%clk
00:00:07]} {[%emt 00:00:01]} 1-0

[Event "Chpt France Universitaire 2024"]
[Site "Bastia, France"]
[Date "2024.04.06"]
[Round "2.11"]
[White "Pheng, Wissam"]
[Black "Budak, Rewi"]
[Result "0-1"]
[TimeControl "15min+5s"]
[WhiteElo "1975"]
[BlackElo "2112"]

1. e4 {[%clk 00:15:05]} {[%emt 00:00:02]} c5 {[%clk 00:15:05]} {[%emt
00:00:01]} 2. b3 {[%clk 00:15:05]} {[%emt 00:00:01]} Nf6 {[%clk 00:15:05]}
{[%emt 00:00:02]} 3. e5 {[%clk 00:15:05]} Nd5 {[%clk 00:15:05]} 4. Bb2 {[%clk
00:15:05]} {[%emt 00:00:01]} Nc6 {[%clk 00:15:05]} {[%emt 00:00:03]} 5. Nf3
{[%clk 00:15:05]} {[%emt 00:00:01]} e6 {[%clk 00:14:53]} {[%emt 00:00:19]} 6.
c4 {[%clk 00:15:05]} {[%emt 00:00:01]} Nde7 {[%clk 00:13:55]} {[%emt 00:01:04]}
7. Nc3 {[%clk 00:15:05]} {[%emt 00:00:03]} Nf5 {[%clk 00:12:44]} {[%emt
00:01:15]} 8. Bd3 {[%clk 00:14:52]} {[%emt 00:00:18]} Nfd4 {[%clk 00:12:43]}
{[%emt 00:00:06]} 9. Nb5 {[%clk 00:12:38]} {[%emt 00:02:20]} Nxf3+ {[%clk
00:11:05]} {[%emt 00:01:43]} 10. Qxf3 {[%clk 00:12:38]} {[%emt 00:00:03]} a6
{[%clk 00:11:05]} {[%emt 00:00:02]} 11. Nd6+ {[%clk 00:12:36]} {[%emt
00:00:07]} Bxd6 {[%clk 00:10:59]} {[%emt 00:00:11]} 12. exd6 {[%clk 00:12:36]}
{[%emt 00:00:01]} Nd4 {[%clk 00:09:36]} {[%emt 00:01:28]} 13. Qh5 {[%clk
00:11:13]} {[%emt 00:01:27]} Qf6 {[%clk 00:09:03]} {[%emt 00:00:38]} 14. O-O-O
{[%clk 00:09:17]} {[%emt 00:02:01]} b6 {[%clk 00:09:00]} {[%emt 00:00:08]} 15.
Be4 {[%clk 00:08:20]} {[%emt 00:01:02]} Rb8 {[%clk 00:07:52]} {[%emt 00:01:12]}
16. Rhf1 {[%clk 00:06:28]} {[%emt 00:01:57]} g6 {[%clk 00:07:45]} {[%emt
00:00:12]} 17. Qh6 {[%clk 00:06:14]} {[%emt 00:00:16]} b5 {[%clk 00:07:04]}
{[%emt 00:00:49]} 18. cxb5 {[%clk 00:05:47]} {[%emt 00:00:32]} Rxb5 {[%clk
00:06:48]} {[%emt 00:00:21]} 19. Qe3 {[%clk 00:05:29]} {[%emt 00:00:23]} Qe5
{[%clk 00:05:33]} {[%emt 00:01:20]} 20. Bd3 {[%clk 00:05:03]} {[%emt 00:00:31]}
Qxd6 {[%clk 00:05:26]} {[%emt 00:00:13]} 21. Bxb5 {[%clk 00:05:01]} {[%emt
00:00:06]} axb5 {[%clk 00:05:26]} {[%emt 00:00:02]} 22. b4 {[%clk 00:04:21]}
{[%emt 00:00:45]} O-O {[%clk 00:04:31]} {[%emt 00:00:59]} 23. Kb1 {[%clk
00:04:20]} {[%emt 00:00:06]} e5 {[%clk 00:04:30]} {[%emt 00:00:06]} 24. bxc5
{[%clk 00:04:11]} {[%emt 00:00:14]} Qxc5 {[%clk 00:04:26]} {[%emt 00:00:10]} 25.
Rc1 {[%clk 00:04:11]} {[%emt 00:00:02]} Qd5 {[%clk 00:04:08]} {[%emt 00:00:22]}
26. f4 {[%clk 00:03:35]} {[%emt 00:00:41]} d6 {[%clk 00:04:08]} {[%emt
00:00:02]} 27. Bxd4 {[%clk 00:03:11]} {[%emt 00:00:29]} Bf5+ {[%clk 00:04:03]}
{[%emt 00:00:10]} 28. Ka1 {[%clk 00:02:00]} {[%emt 00:01:15]} exd4 {[%clk
00:04:03]} {[%emt 00:00:02]} 29. Qb3 {[%clk 00:02:00]} {[%emt 00:00:04]} Qxg2
{[%clk 00:04:03]} {[%emt 00:00:01]} 30. Rfd1 {[%clk 00:00:55]} {[%emt
00:01:10]} Rb8 {[%clk 00:01:50]} {[%emt 00:02:18]} 31. Qb4 {[%clk 00:00:17]}
{[%emt 00:00:43]} Qd5 {[%clk 00:01:50]} {[%emt 00:00:03]} 32. d3 {[%clk
00:00:11]} {[%emt 00:00:11]} Ra8 {[%clk 00:01:50]} {[%emt 00:00:05]} 33. Rd2
{[%clk 00:00:11]} {[%emt 00:00:04]} Bxd3 {[%clk 00:01:48]} {[%emt 00:00:07]} 34.
a3 {[%clk 00:00:08]} {[%emt 00:00:08]} Bc4 {[%clk 00:01:48]} {[%emt 00:00:02]}
35. Qb2 {[%clk 00:00:08]} {[%emt 00:00:02]} Qc5 {[%clk 00:01:41]} {[%emt
00:00:12]} 36. Rd3 {[%clk 00:00:08]} {[%emt 00:00:01]} d5 {[%clk 00:00:50]}
{[%emt 00:00:56]} 37. Qxd4 {[%clk 00:00:08]} {[%emt 00:00:05]} Rxa3+ {[%emt
00:00:04]} 38. Kb1 Rb3+ {[%clk 00:00:50]} {[%emt 00:00:03]} 39. Rxb3 {[%clk
00:00:08]} {[%emt 00:00:06]} Qxd4 {[%clk 00:00:50]} {[%emt 00:00:02]} 40. Rb2
{[%clk 00:00:08]} Bd3+ {[%clk 00:00:50]} {[%emt 00:00:04]} 41. Ka1 {[%clk
00:00:08]} {[%emt 00:00:02]} Qa4+ {[%clk 00:00:50]} {[%emt 00:00:04]} 42. Ra2
{[%clk 00:00:08]} {[%emt 00:00:01]} Qxf4 {[%clk 00:00:50]} {[%emt 00:00:05]} 43.
Rd1 {[%clk 00:00:08]} {[%emt 00:00:04]} Qd4+ {[%clk 00:00:50]} {[%emt
00:00:03]} 44. Rb2 {[%clk 00:00:08]} {[%emt 00:00:02]} Qa4+ {[%clk 00:00:50]}
0-1